fUSD/lending_fUSD_20260329
["ID","MTS","AMOUNT","RATE_DAILY","PERIOD"]
[419016118,1774755046571,-1000.0,0.00015828,2]
[419016120,1774755046581,-1000.0,0.00015832,2]
[419016121,1774755046590,-15875.22869035,0.0001584,2]
[419016122,1774755046599,-1511.46074,0.0001584,2]
[419016123,1774755046608,-1511.46074,0.0001584,2]
[419016124,1774755046618,-1000.0,0.00015843,2]
[419016125,1774755046628,-232.32917063,0.00015843,7]
[419016126,1774755046638,-1000.0,0.00015847,2]
[419016127,1774755046647,-1511.46074,0.0001585,2]
[419016128,1774755046657,-1000.0,0.00015852,2]
[419016129,1774755046667,-1000.0,0.0001586,2]
[419016130,1774755046676,-1000.0,0.00015861,2]
[419016131,1774755046686,-1000.0,0.00015862,2]
[419016132,1774755046696,-1000.0,0.00015871,2]
[419016133,1774755046705,-1000.0,0.00015875,2]
[419016134,1774755046714,-350.0,0.00015878,2]
[419016135,1774755046724,-1000.0,0.00015885,2]
[419016136,1774755046734,-1000.0,0.00015886,2]
[419016137,1774755046744,-1000.0,0.00015889,2]
[419016138,1774755046753,-2504.39639872,0.0001589,2]
[419016139,1774755046763,-2005.38041988,0.0001589,2]
[419016140,1774755046772,-175.5057314,0.000159,2]
[419016141,1774755046782,-261.46196373,0.000159,5]
[419016142,1774755046793,-150.0,0.000159,2]
[419016143,1774755046803,-155.85026359,0.000159,2]
[419016144,1774755046814,-150.0,0.000159,2]
[419016145,1774755046823,-582.74412177,0.000159,2]
[419016146,1774755046833,-150.0,0.000159,2]
[419016147,1774755046843,-150.0,0.000159,2]
[419016148,1774755046853,-150.0,0.000159,2]
[419016149,1774755046863,-150.0,0.000159,2]
[419016150,1774755046872,-150.30407876,0.000159,2]
[419016151,1774755046881,-3500.0,0.000159,5]
[419016152,1774755046890,-232.843984,0.000159,2]
[419016153,1774755046900,-150.35804248,0.000159,2]
[419016155,1774755046909,-166.72762328,0.000159,2]
[419016156,1774755046918,-3382.26815121,0.000159,2]
[419016158,1774755046927,-200.0,0.000159,5]
[419016160,1774755046936,-3851.0,0.000159,5]
[419016161,1774755046946,-3078.0,0.000159,5]
[419016162,1774755046955,-350.0,0.00015903,2]
[419016163,1774755046963,-2099.0,0.00015924,2]
[419016164,1774755046972,-1000.0,0.0001593,2]
[419016165,1774755046982,-1000.0,0.0001593,2]
[419016166,1774755046991,-5888.0,0.0001594,2]
[419016167,1774755047000,-5888.0,0.00015941,2]
[419016168,1774755047009,-5000.0,0.0001596,2]
[419016169,1774755047018,-700.0,0.0001597,2]
[419016170,1774755047028,-700.0,0.0001597,2]
[419016171,1774755047037,-700.0,0.0001597,2]
[419016172,1774755047046,-854.65118905,0.0001597,2]
[419016173,1774755047055,-182.0,0.00015973,2]
[419016174,1774755047064,-1000.0,0.00015976,2]
[419016175,1774755047074,-177.90257438,0.0001599,2]
[419016176,1774755047084,-1000.0,0.00015991,2]
[419016177,1774755047093,-151.0,0.00015997,2]
[419016178,1774755047102,-151.0,0.00015997,2]
[419016179,1774755047111,-176.32124557,0.00015997,2]
[419016180,1774755047121,-1000.0,0.00015998,2]
[419016181,1774755047130,-390456.0393447,0.00015998,2]
[419016182,1774755047140,-666.0,0.00015999,2]
[419016183,1774755047150,-677.2242101,0.00015999,2]
[419016184,1774755047159,-635.43,0.00015999,2]
[419016185,1774755047169,-635.43,0.00015999,2]
[419016186,1774755047178,-635.43,0.00015999,2]
[419016187,1774755047187,-635.43,0.00015999,2]
[419016188,1774755047197,-635.46062743,0.00015999,2]
[419016189,1774755047206,-1031588.2820928,0.00016,2]
[419016190,1774755047216,-1000.0,0.00016,2]
[419016191,1774755047226,-1000.0,0.00016,2]
[419016192,1774755047235,-1000.0,0.00016,2]
[419016193,1774755047245,-1000.0,0.00016,2]
[419016194,1774755047256,-1136.67706751,0.00016,2]
[419016195,1774755047264,-1011.80085497,0.00016,2]
[419016196,1774755047273,-2896435.15465522,0.00016,2]
[419016197,1774755047473,-380.67545228,0.00011266,2]
[419016198,1774755047483,-263.53045476,0.00015319,2]
[419016199,1774755047495,-92.18969894,0.00015319,2]
[419016200,1774755047504,-407.81030106,0.00016,2]
[419016201,1774755047516,-2393427.36399527,0.00016,2]
[419016202,1774755047525,-5535059.20305528,0.00016,2]
[419016203,1774755047588,-380.67545228,0.00011266,2]
[419016204,1774755047598,-394.74,0.00013533,2]
[419016205,1774755047607,-124.64096314,0.00016,2]
[419016206,1774755047623,-2821.71864952,0.00016,2]
[419016207,1774755047639,-20101.5990635,0.00016,2]
[419016208,1774755047648,-233.95722932,0.00016,2]
[419016209,1774755047659,-817.29976959,0.00016,2]
[419016210,1774755047669,-11211.7236491,0.00016,2]
[419016211,1774755047678,-1175.2557346,0.00016,2]
[419016212,1774755047687,-151.0,0.00016,2]
[419016213,1774755047696,-151.0,0.00016,2]
[419016214,1774755047706,-151.0,0.00016,2]
[419016215,1774755047715,-151.0,0.00016,2]
[419016216,1774755047818,-182.80917898,0.00016,2]
[419016217,1774755047828,-152.0,0.00016,2]
[419016218,1774755047837,-153.84805753,0.00016,2]
[419016219,1774755047847,-152.18199725,0.00016,2]
[419016220,1774755047857,-151.0,0.00016,2]
[419016221,1774755047866,-151.0,0.00016,2]
[419016222,1774755047875,-151.0,0.00016,2]
[419016223,1774755047885,-155.939702,0.00016,2]
[419016224,1774755047895,-250.0,0.00016,3]
[419016225,1774755047904,-2000.0,0.00016,2]
[419016226,1774755047914,-200.0,0.00016,2]
[419016227,1774755047923,-1523.0,0.00016,2]
[419016228,1774755047932,-1523.0,0.00016,2]
[419016229,1774755047941,-151.0,0.00016,2]
[419016230,1774755047950,-1523.0,0.00016,2]
[419016231,1774755047959,-151.0,0.00016,2]
[419016232,1774755047968,-1523.0,0.00016,2]
[419016233,1774755047977,-151.0,0.00016,2]
[419016234,1774755047986,-1566.9508983,0.00016,2]
[419016235,1774755047996,-163.75742817,0.00016,2]
[419016236,1774755048004,-161.0,0.00016,2]
[419016237,1774755048014,-165.32177173,0.00016,2]
[419016238,1774755048023,-151.0,0.00016,2]
[419016239,1774755048032,-151.0,0.00016,2]
[419016240,1774755048041,-151.0,0.00016,2]
[419016241,1774755048050,-155.988162,0.00016,2]
[419016242,1774755048060,-157.97747,0.00016,2]
[419016243,1774755048069,-151.0,0.00016,2]
[419016244,1774755048079,-151.0,0.00016,2]
[419016245,1774755048088,-151.0,0.00016,2]
[419016246,1774755048097,-151.0,0.00016,2]
[419016247,1774755048107,-151.0,0.00016,2]
[419016248,1774755048116,-151.0,0.00016,2]
[419016249,1774755048126,-151.0,0.00016,2]
[419016250,1774755048135,-151.0,0.00016,2]
[419016251,1774755048144,-151.0,0.00016,2]
[419016252,1774755048153,-151.0,0.00016,2]
[419016253,1774755048162,-151.0,0.00016,2]
[419016254,1774755048171,-151.0,0.00016,2]
[419016255,1774755048180,-151.0,0.00016,2]
[419016256,1774755048189,-156.522177,0.00016,2]
[419016257,1774755048198,-151.0,0.00016,2]
[419016258,1774755048208,-151.0,0.00016,2]
[419016259,1774755048217,-151.0,0.00016,2]
[419016260,1774755048226,-200.0,0.00016,2]
[419016261,1774755048235,-1523.0,0.00016,2]
[419016262,1774755048245,-151.0,0.00016,2]
[419016263,1774755048254,-1523.0,0.00016,2]
[419016264,1774755048264,-151.0,0.00016,2]
[419016265,1774755048273,-1523.0,0.00016,2]
[419016266,1774755048283,-160.57028372,0.00016,2]
[419016267,1774755048292,-151.0,0.00016,2]
[419016268,1774755048301,-1523.0,0.00016,2]
[419016269,1774755048311,-151.0,0.00016,2]
[419016270,1774755048320,-1523.0,0.00016,2]
[419016271,1774755048329,-151.0,0.00016,2]
[419016272,1774755048338,-1523.0,0.00016,2]
[419016273,1774755048347,-151.0,0.00016,2]
[419016274,1774755048357,-1523.0,0.00016,2]
[419016275,1774755048366,-151.0,0.00016,2]
[419016276,1774755048375,-1523.0,0.00016,2]
[419016277,1774755048385,-151.0,0.00016,2]
[419016278,1774755048395,-1523.0,0.00016,2]
[419016279,1774755048404,-1523.0,0.00016,2]
[419016280,1774755048413,-1523.0,0.00016,2]
[419016281,1774755048423,-1523.0,0.00016,2]
[419016282,1774755048432,-1523.0,0.00016,2]
[419016283,1774755048441,-151.0,0.00016,2]
[419016284,1774755048450,-1523.0,0.00016,2]
[419016285,1774755048459,-151.0,0.00016,2]
[419016286,1774755048469,-151.0,0.00016,2]
[419016287,1774755048478,-1523.0,0.00016,2]
[419016288,1774755048487,-1611.57442331,0.00016,2]
[419016289,1774755048496,-151.0,0.00016,2]
[419016290,1774755048505,-151.0,0.00016,2]
[419016291,1774755048514,-151.0,0.00016,2]
[419016292,1774755048523,-1000.0,0.00016,2]
[419016293,1774755048532,-781.829264,0.00016,2]
[419016294,1774755048543,-781.829264,0.00016,2]
[419016295,1774755048553,-781.829264,0.00016,2]
[419016296,1774755048562,-781.829264,0.00016,2]
[419016297,1774755048571,-781.829264,0.00016,2]
[419016298,1774755048580,-781.829264,0.00016,2]
[419016299,1774755048589,-781.829264,0.00016,2]
[419016300,1774755048598,-781.829264,0.00016,2]
[419016301,1774755048607,-781.829264,0.00016,2]
[419016302,1774755048616,-781.829264,0.00016,2]
[419016303,1774755048626,-781.829264,0.00016,2]
[419016304,1774755048635,-781.829264,0.00016,2]
[419016305,1774755048644,-1511.46075,0.00016,2]
[419016306,1774755048653,-1511.46074,0.00016,2]
[419016307,1774755048662,-1511.46074,0.00016,2]
[419016308,1774755048671,-994.504961,0.00016,2]
[419016309,1774755048680,-994.504961,0.00016,2]
[419016310,1774755048689,-994.504961,0.00016,2]
[419016311,1774755048699,-994.504961,0.00016,2]
[419016312,1774755048708,-994.504961,0.00016,2]
[419016313,1774755048718,-994.504961,0.00016,2]
[419016314,1774755048727,-994.504961,0.00016,2]
[419016315,1774755048737,-994.504961,0.00016,2]
[419016316,1774755048746,-994.504961,0.00016,2]
[419016317,1774755048756,-994.504961,0.00016,2]
[419016318,1774755048766,-994.504961,0.00016,2]
[419016319,1774755048775,-994.504961,0.00016,2]
[419016320,1774755048785,-312.0,0.00016,2]
[419016321,1774755048794,-878.05683575,0.00016,2]
[419016322,1774755048803,-2000.0,0.00016,2]
[419016323,1774755048813,-955.0,0.00016,2]
[419016324,1774755048821,-151.0,0.00016,2]
[419016325,1774755048831,-151.0,0.00016,2]
[419016326,1774755048841,-151.0,0.00016,2]
[419016327,1774755048850,-151.0,0.00016,2]
[419016328,1774755048860,-151.0,0.00016,2]
[419016329,1774755048869,-1555.508823,0.00016,2]
[419016330,1774755048879,-151.0,0.00016,2]
[419016331,1774755048888,-1555.508823,0.00016,2]
[419016332,1774755048898,-1555.508823,0.00016,2]
[419016333,1774755048908,-154.138575,0.00016,2]
[419016334,1774755048918,-1555.508823,0.00016,2]
[419016335,1774755048927,-1555.508823,0.00016,2]
[419016336,1774755048936,-1555.508823,0.00016,2]
[419016337,1774755048945,-1555.508823,0.00016,2]
[419016338,1774755048955,-1555.508823,0.00016,2]
[419016339,1774755048965,-1555.508823,0.00016,2]
[419016340,1774755048975,-1555.508823,0.00016,2]
[419016341,1774755048984,-1555.508823,0.00016,2]
[419016342,1774755048993,-1555.508823,0.00016,2]
[419016343,1774755049003,-1000.0,0.00016,2]
[419016344,1774755049012,-151.0,0.00016,2]
[419016345,1774755049021,-151.0,0.00016,2]
[419016346,1774755049031,-151.0,0.00016,2]
[419016347,1774755049040,-151.0,0.00016,2]
[419016348,1774755049050,-151.0,0.00016,2]
[419016349,1774755049059,-151.0,0.00016,2]
[419016350,1774755049069,-151.0,0.00016,2]
[419016351,1774755049078,-151.0,0.00016,2]
[419016352,1774755049087,-189.712278,0.00016,2]
[419016353,1774755049097,-200.0,0.00016,2]
[419016354,1774755049107,-5000.0,0.00016,2]
[419016355,1774755049116,-5000.0,0.00016,2]
[419016356,1774755049126,-5000.0,0.00016,2]
[419016357,1774755049135,-3331.933381,0.00016,2]
[419016358,1774755049145,-1993.13401906,0.00016,2]
[419016359,1774755049155,-151.0,0.00016,2]
[419016360,1774755049165,-151.0,0.00016,2]
[419016361,1774755049175,-151.0,0.00016,2]
[419016362,1774755049184,-151.0,0.00016,2]
[419016363,1774755049194,-156.570043,0.00016,2]
[419016364,1774755049203,-441.059844,0.00016,2]
[419016365,1774755049212,-441.059844,0.00016,2]
[419016366,1774755049223,-441.059844,0.00016,2]
[419016367,1774755049232,-441.059844,0.00016,2]
[419016368,1774755049241,-441.059844,0.00016,2]
[419016369,1774755049251,-441.059844,0.00016,2]
[419016370,1774755049261,-441.059844,0.00016,2]
[419016371,1774755049270,-441.059844,0.00016,2]
[419016372,1774755049280,-441.059844,0.00016,2]
[419016373,1774755049289,-441.059844,0.00016,2]
[419016374,1774755049298,-441.059844,0.00016,2]
[419016375,1774755049308,-441.059844,0.00016,2]
[419016376,1774755049317,-5888.0,0.00016001,2]
[419016377,1774755049327,-425.0,0.00016014,2]
[419016378,1774755049336,-166.66,0.00016036,2]
[419016379,1774755049345,-183.799894,0.00016056,7]
[419016380,1774755049354,-513.0,0.00016063,3]
[419016381,1774755049364,-425.0,0.00016097,2]
[419016382,1774755049373,-648.6,0.000161,2]
[419016383,1774755049382,-7380.22,0.000161,2]
[419016384,1774755049391,-744.75,0.000161,2]
[419016385,1774755049401,-2000.0,0.000161,2]
[419016386,1774755049410,-1137.0,0.00016111,2]
[419016387,1774755049419,-974.0,0.00016111,2]
[419016388,1774755049429,-8054.22,0.00016116,2]
[419016389,1774755049439,-425.0,0.00016132,2]
[419016390,1774755049448,-200.0,0.0001616,2]
[419016391,1774755049458,-5888.0,0.0001616,2]
[419016392,1774755049468,-248.6,0.00016189,2]
[419016393,1774755049477,-2099.0,0.0001619,2]
[419016394,1774755049486,-439.0,0.00016192,2]
[419016395,1774755049495,-150.0,0.000162,2]
[419016396,1774755049506,-2000.0,0.000162,2]
[419016397,1774755049515,-2000.0,0.000162,2]
[419016398,1774755049524,-2099.0,0.00016216,2]
[419016399,1774755049533,-1543.56,0.00016217,2]
[419016400,1774755049542,-1800.0,0.00016237,2]
[419016401,1774755049551,-1800.0,0.00016237,2]
[419016402,1774755049560,-1800.0,0.00016237,2]
[419016403,1774755049569,-1800.0,0.00016237,2]
[419016404,1774755049579,-1800.0,0.00016237,2]
[419016405,1774755049588,-1800.0,0.00016237,2]
[419016406,1774755049597,-1800.0,0.00016237,2]
[419016407,1774755049606,-1800.0,0.00016237,2]
[419016408,1774755049616,-1800.0,0.00016237,2]
[419016409,1774755049625,-1798.0,0.00016237,2]
[419016410,1774755049635,-1000.0,0.00016266,2]
[419016411,1774755049644,-2099.0,0.00016274,2]
[419016412,1774755049653,-4000.0,0.00016282,2]
[419016413,1774755049662,-350.0,0.00016287,2]
[419016414,1774755049671,-2000.0,0.000163,2]
[419016415,1774755049681,-200.0,0.00016322,2]
[419016416,1774755049690,-5888.0,0.00016328,2]
[419016417,1774755049700,-5888.0,0.00016354,2]
[419016418,1774755049709,-2000.0,0.000164,2]
[419016419,1774755049803,-2000.0,0.000164,2]
[419016420,1774755049812,-748.68,0.00016438,2]
[419016421,1774755049822,-731.38,0.00016438,2]
[419016422,1774755049831,-685.07,0.00016438,2]
[419016423,1774755049840,-300.0,0.00016438,3]
[419016424,1774755049849,-300.0,0.00016438,3]
[419016425,1774755049858,-300.0,0.00016438,3]
[419016426,1774755049868,-300.0,0.00016438,3]
[419016427,1774755049878,-300.0,0.00016438,3]
[419016428,1774755049888,-151.0,0.00016438,2]
[419016429,1774755049897,-151.0,0.00016438,2]
[419016430,1774755049908,-151.0,0.00016438,2]
[419016431,1774755049918,-151.0,0.00016438,2]
[419016432,1774755049929,-151.0,0.00016438,2]
[419016433,1774755049939,-151.0,0.00016438,2]
[419016434,1774755049951,-350.0,0.00016484,2]
[419016435,1774755049960,-200.0,0.00016485,2]
[419016436,1774755049969,-2099.0,0.00016491,2]
[419016437,1774755049980,-5888.0,0.00016498,2]
[419016438,1774755049990,-2000.0,0.000165,2]
[419016439,1774755049999,-166.66,0.00016548,2]
[419016440,1774755050009,-1300.0,0.00016548,2]
[419016441,1774755050020,-1300.0,0.00016548,2]
[419016442,1774755050030,-1300.0,0.00016548,2]
[419016443,1774755050040,-1300.0,0.00016548,2]
[419016444,1774755050051,-1300.0,0.00016548,2]
[419016445,1774755050062,-1300.0,0.00016548,2]
[419016446,1774755050071,-1300.0,0.00016548,2]
[419016447,1774755050082,-1300.0,0.00016548,2]
[419016448,1774755050093,-1300.0,0.00016548,2]
[419016449,1774755050102,-445.31,0.000166,2]
[419016450,1774755050112,-2000.0,0.000166,2]
[419016451,1774755050121,-200.0,0.0001665,2]
[419016452,1774755050130,-4000.0,0.0001667,2]
[419016453,1774755050140,-2000.0,0.000167,2]
[419016454,1774755050149,-590.01077233,0.00016753,2]
[419016455,1774755050159,-170.84,0.00016753,2]
[419016456,1774755050169,-154.53434814,0.00016766,2]
[419016457,1774755050178,-394.74,0.00016767,2]
[419016458,1774755050187,-150.0,0.00016796,2]
[419016459,1774755050196,-150.0,0.00016796,2]
[419016460,1774755050206,-150.0,0.00016796,2]
[419016461,1774755050215,-150.0,0.00016796,2]
[419016462,1774755050225,-150.0,0.00016796,2]
[419016463,1774755050234,-150.0,0.00016796,2]
[419016464,1774755050243,-150.0,0.00016796,2]
[419016465,1774755050252,-150.0,0.00016796,2]
[419016466,1774755050262,-199.0,0.00016796,2]
[419016467,1774755050271,-1077.56,0.000168,2]
[419016468,1774755050281,-2000.0,0.000168,2]
[419016469,1774755050290,-2099.0,0.000168,2]
[419016470,1774755050299,-5888.0,0.00016806,2]
[419016471,1774755050309,-2241.37123766,0.00016814,2]
[419016472,1774755050319,-359.61861994,0.00016823,3]
[419016473,1774755050328,-2129.0,0.00016824,2]
[419016474,1774755050338,-5888.0,0.00016876,2]
[419016475,1774755050348,-2000.0,0.000169,2]
[419016476,1774755050358,-170.83329395,0.00016905,2]
[419016477,1774755050367,-6453.0,0.00016909,2]
[419016478,1774755050376,-350.0,0.0001692,2]
[419016479,1774755050385,-1543.56,0.0001699,2]
[419016480,1774755050394,-248.6,0.00016998,2]
[419016481,1774755050403,-5958.67359897,0.00017,2]
[419016482,1774755050413,-350.0,0.00017,2]
[419016483,1774755050422,-350.0,0.00017031,3]
[419016484,1774755050431,-2099.0,0.00017053,2]
[419016485,1774755050441,-4000.0,0.00017058,2]
[419016486,1774755050450,-166.66,0.00017061,2]
[419016487,1774755050459,-350.0,0.00017074,2]
[419016488,1774755050470,-174.0,0.00017123,2]
[419016489,1774755050480,-2099.0,0.00017143,2]
[419016490,1774755050489,-5888.0,0.00017181,2]
[419016491,1774755050498,-152.5775,0.000172,2]
[419016492,1774755050509,-317.06086378,0.00017211,2]
[419016493,1774755050519,-2099.0,0.00017227,2]
[419016494,1774755050529,-350.0,0.0001724,2]
[419016495,1774755050538,-2099.0,0.00017276,2]
[419016496,1774755050547,-665.85,0.00017395,2]
[419016497,1774755050557,-406.284162,0.00017532,7]
[419016498,1774755050567,-508.823082,0.00017546,7]
[419016499,1774755050577,-166.66,0.00017573,2]
[419016500,1774755050586,-351.93190659,0.00017692,2]
[419016501,1774755050596,-168.16,0.0001776,2]
[419016502,1774755050605,-168.16,0.0001776,2]
[419016503,1774755050614,-1543.56,0.00017762,2]
[419016504,1774755050625,-248.6,0.00017808,2]
[419016505,1774755050635,-154.53434814,0.00017964,2]
[419016506,1774755050644,-648.6,0.00018,2]
[419016507,1774755050654,-7380.22,0.00018,2]
[419016508,1774755050663,-744.75,0.00018,2]
[419016509,1774755050672,-87122.5185899,0.0001804,2]
[419016510,1774755050681,-2501.6736933,0.00018042,2]
[419016511,1774755050690,-166.66,0.00018086,2]
[419016512,1774755050700,-513.0,0.00018125,5]
[419016513,1774755050709,-183.799894,0.0001815,7]
[419016514,1774755050719,-33330.2719904,0.00018341,2]
[419016515,1774755050729,-174.0,0.00018493,2]
[419016516,1774755050738,-13606.89192292,0.00018495,2]
[419016517,1774755050759,-394.74,0.00017733,2]
[419016518,1774755050768,-5832.76960258,0.00018495,2]
[419016519,1774755050778,-558.1988518,0.00018498,2]
[419016520,1774755050787,-1543.56,0.00018534,2]
[419016521,1774755050797,-3706.0,0.000186,2]
[419016522,1774755050806,-248.6,0.00018617,2]
[419016523,1774755050815,-500.0,0.0001863,2]
[419016524,1774755050824,-445.31,0.000187,2]
[419016525,1774755050835,-7436.988927,0.00018863,2]
[419016526,1774755050845,-1077.56,0.000189,2]
[419016527,1774755050855,-153.2287,0.000189,2]
[419016528,1774755050864,-199.20236959,0.00019,2]
[419016529,1774755050874,-80202.40536223,0.00019,2]
[419016530,1774755050884,-171.53297065,0.00019,2]
[419016531,1774755050894,-400.0,0.00019,2]
[419016532,1774755050903,-3835.20744626,0.00019152,2]
[419016533,1774755050913,-154.53434814,0.00019161,2]
[419016534,1774755050922,-1092.66,0.00019178,2]
[419016535,1774755050932,-151.0,0.00019178,2]
[419016536,1774755050941,-151.0,0.00019178,2]
[419016537,1774755050951,-151.0,0.00019178,2]
[419016538,1774755050960,-151.0,0.00019178,2]
[419016539,1774755050970,-151.0,0.00019178,2]
[419016540,1774755050979,-151.0,0.00019178,2]
[419016541,1774755050989,-151.0,0.00019178,2]
[419016542,1774755050998,-151.0,0.00019178,2]
[419016543,1774755051008,-151.0,0.00019178,2]
[419016544,1774755051018,-2000.0,0.000192,2]
[419016545,1774755051028,-30000.0,0.00019347,2]
[419016546,1774755051037,-248.6,0.00019426,2]
[419016547,1774755051047,-174.0,0.00019863,2]
[419016548,1774755051057,-192748.70015569,0.0001995,15]
[419016549,1774755051067,-1000.0,0.0002,7]
[419016550,1774755051077,-4816.6629168,0.0002,2]
[419016551,1774755051086,-308.71536371,0.0002,2]
[419016552,1774755051096,-500.0,0.00020072,2]
[419016553,1774755051105,-648.6,0.000201,2]
[419016554,1774755051114,-7380.22,0.000201,2]
[419016555,1774755051123,-744.75,0.000201,2]
[419016556,1774755051133,-500.0,0.00020177,2]
[419016557,1774755051142,-513.0,0.00020187,7]
[419016558,1774755051151,-248.6,0.00020236,2]
[419016559,1774755051161,-154.53434814,0.00020359,2]
[419016560,1774755051171,-2040.08,0.00020398,2]
[419016561,1774755051181,-1570.0,0.000204,2]
[419016562,1774755051191,-616.12,0.00020458,2]
[419016563,1774755051199,-500.0,0.00020458,2]
[419016564,1774755051209,-153.8828,0.000205,2]
[419016565,1774755051219,-426.78,0.0002055,2]
[419016566,1774755051229,-177.0,0.000209,2]
[419016567,1774755051239,-291.0,0.000209,2]
[419016568,1774755051249,-424.0,0.000209,2]
[419016569,1774755051259,-4233.0,0.000209,2]
[419016570,1774755051269,-876.0,0.000209,2]
[419016571,1774755051279,-235.0,0.000209,2]
[419016572,1774755051290,-752.52518023,0.00021,7]
[419016573,1774755051301,-450.0,0.00021,2]
[419016574,1774755051310,-248.6,0.00021045,2]
[419016575,1774755051319,-426.78,0.00021064,2]
[419016576,1774755051329,-501.0,0.00021068,2]
[419016577,1774755051338,-174.0,0.00021232,2]
[419016578,1774755051347,-1092.66,0.00021341,2]
[419016579,1774755051357,-500.0,0.00021514,2]
[419016580,1774755051367,-154.53434815,0.00021556,2]
[419016581,1774755051376,-1570.0,0.0002156,2]
[419016582,1774755051386,-426.80194786,0.00021578,2]
[419016583,1774755051395,-445.31,0.000216,2]
[419016584,1774755051405,-161.0,0.0002168,2]
[419016585,1774755051414,-1077.56,0.000217,2]
[419016586,1774755051424,-150.0,0.00021808,2]
[419016587,1774755051433,-241.0,0.00021808,2]
[419016588,1774755051442,-150.104,0.00021808,2]
[419016589,1774755051451,-150.455,0.00021808,2]
[419016590,1774755051461,-150.0,0.00021808,2]
[419016591,1774755051470,-150.0,0.00021808,2]
[419016592,1774755051480,-150.323,0.00021808,2]
[419016593,1774755051489,-925.479,0.00021808,2]
[419016594,1774755051499,-1217.967,0.00021808,2]
[419016595,1774755051510,-1346.0,0.00021808,2]
[419016596,1774755051519,-6013.0,0.00021808,2]
[419016597,1774755051529,-2468.0,0.00021808,2]
[419016598,1774755051540,-248.6,0.00021855,2]
[419016599,1774755051549,-700.0,0.0002187,2]
[419016600,1774755051559,-177.0,0.000219,2]
[419016601,1774755051568,-291.0,0.000219,2]
[419016602,1774755051577,-424.0,0.000219,2]
[419016603,1774755051588,-4233.0,0.000219,2]
[419016604,1774755051597,-876.0,0.000219,2]
[419016605,1774755051686,-235.0,0.000219,2]
[419016606,1774755051696,-443.0,0.00021918,2]
[419016607,1774755051705,-5000.0,0.00021918,2]
[419016608,1774755051714,-223.64,0.00021918,2]
[419016609,1774755051724,-205.63,0.00021984,2]
[419016610,1774755051733,-168.18,0.000222,2]
[419016611,1774755051743,-154.5396,0.000222,2]
[419016612,1774755051752,-513.0,0.0002225,9]
[419016613,1774755051762,-500.0,0.00022289,2]
[419016614,1774755051771,-500.0,0.00022289,2]
[419016615,1774755051781,-648.6,0.000223,7]
[419016616,1774755051790,-7380.22,0.000223,2]
[419016617,1774755051799,-275.51,0.00022451,2]
[419016618,1774755051809,-2807.0,0.0002252,2]
[419016619,1774755051819,-599.54526803,0.00022605,40]
[419016620,1774755051828,-2602.01,0.0002274,2]
[419016621,1774755051838,-2807.0,0.0002284,3]